bitfinex/quotes_BTCUSD_20240627
["timestamp","ask_amount","ask_price","bid_price","bid_amount"]
[1719487624640,0.00284,61224.0,61223.0,0.79345219]
[1719487626867,0.00284,61224.0,61223.0,0.78345219]
[1719487627068,0.00284,61224.0,61223.0,0.62111321]
[1719487627272,0.166174,61224.0,61223.0,0.35111321]
[1719487627476,1.414729,61224.0,61223.0,0.36611321]
[1719487627687,1.741398,61224.0,61223.0,0.36611321]
[1719487628106,1.653644,61224.0,61223.0,0.36611321]
[1719487629312,1.072712,61224.0,61223.0,0.36611321]
[1719487629668,1.653644,61224.0,61223.0,0.36611321]
[1719487630097,1.633644,61224.0,61223.0,0.35886582]
[1719487630482,1.633644,61224.0,61223.0,0.36523048]
[1719487631567,1.807113,61224.0,61223.0,0.35023048]
[1719487631834,2.072213,61224.0,61223.0,0.35886582]
[1719487632935,2.072213,61224.0,61223.0,0.36523048]
[1719487633968,2.65671571,61224.0,61223.0,0.02159366]
[1719487634169,2.65671571,61224.0,61223.0,0.015229]
[1719487634582,3.14572369,61224.0,61223.0,0.015229]
[1719487635133,3.14472369,61224.0,61223.0,0.013229]
[1719487635259,3.16672369,61224.0,61223.0,0.009229]
[1719487635459,3.33264166,61224.0,61223.0,0.009229]
[1719487635682,3.16772369,61224.0,61223.0,0.009229]
[1719487635890,3.16672369,61224.0,61223.0,0.009229]
[1719487636263,3.33961941,61224.0,61223.0,0.009229]
[1719487636463,3.33161941,61224.0,61223.0,0.009229]
[1719487636669,3.33961941,61224.0,61223.0,0.009229]
[1719487636889,3.34761941,61224.0,61223.0,0.009229]
[1719487638338,3.33961941,61224.0,61223.0,0.009229]
[1719487638483,3.17472369,61224.0,61223.0,0.009229]
[1719487638685,3.33961941,61224.0,61223.0,0.009229]
[1719487638957,3.17472369,61224.0,61223.0,0.009229]
[1719487639159,3.18272369,61224.0,61223.0,0.009229]
[1719487640382,2.64741311,61224.0,61223.0,0.009229]
[1719487640586,7.13763511,61224.0,61223.0,0.009229]
[1719487640787,7.12636411,61224.0,61223.0,0.009229]
[1719487641622,6.3385994,61224.0,61223.0,0.009229]
[1719487641819,6.2596794,61224.0,61223.0,0.009229]
[1719487642839,4.6804534,61224.0,61223.0,0.009229]
[1719487643012,3.7973864,61224.0,61223.0,0.009229]
[1719487645670,3.7582544,61224.0,61223.0,0.009229]
[1719487650158,2.45057842,61224.0,61223.0,0.209229]
[1719487650413,2.54607842,61224.0,61223.0,0.209229]
[1719487652301,2.54607842,61224.0,61223.0,0.009229]
[1719487652500,2.70841213,61224.0,61223.0,0.0157511]
[1719487652795,2.97191213,61224.0,61223.0,0.0157511]
[1719487653007,2.97191213,61224.0,61223.0,0.009229]
[1719487653406,2.80957842,61224.0,61223.0,0.009229]
[1719487655271,1.97147142,61224.0,61223.0,0.009229]
[1719487655467,4.60546342,61224.0,61223.0,0.009229]
[1719487655664,4.84636342,61224.0,61223.0,0.009229]
[1719487656494,4.72468942,61224.0,61223.0,0.009229]
[1719487657206,4.56558942,61224.0,61223.0,0.009229]
[1719487658577,4.72792313,61224.0,61223.0,0.009229]
[1719487659128,4.89026211,61224.0,61223.0,0.009229]
[1719487662387,4.90529555,61224.0,61223.0,0.009229]
[1719487665286,4.74296184,61224.0,61223.0,0.009229]
[1719487669608,2.14884384,61224.0,61223.0,0.009229]
[1719487671118,4.87935784,61224.0,61223.0,0.009229]
[1719487672041,4.88019784,61224.0,61223.0,0.009229]
[1719487676817,5.04509615,61224.0,61223.0,0.009229]
[1719487677261,4.88019784,61224.0,61223.0,0.009229]
[1719487677463,5.20742986,61224.0,61223.0,0.009229]
[1719487677871,5.04253155,61224.0,61223.0,0.009229]
[1719487678631,5.10570055,61224.0,61223.0,0.009229]
[1719487678769,5.37760055,61224.0,61223.0,0.009229]
[1719487681555,4.52119784,61224.0,61223.0,0.009229]
[1719487681785,3.64229484,61224.0,61223.0,0.009229]
[1719487681954,3.54679484,61224.0,61223.0,0.009229]
[1719487682165,3.64229484,61224.0,61223.0,0.009229]
[1719487683685,3.54679484,61224.0,61223.0,0.009229]
[1719487683887,3.64229484,61224.0,61223.0,0.009229]
[1719487686581,3.80462855,61224.0,61223.0,0.009229]
[1719487690563,2.04851755,61224.0,61223.0,0.009229]
[1719487690841,1.88618384,61224.0,61223.0,0.009229]
[1719487691257,6.66725084,61224.0,61223.0,0.009229]
[1719487692215,6.57713084,61224.0,61223.0,0.009229]
[1719487694624,6.57713084,61224.0,61223.0,0.00788139]
[1719487695042,6.57713084,61224.0,61223.0,0.00622373]
[1719487696329,6.22449384,61224.0,61223.0,0.00622373]
[1719487696878,5.68599386,61224.0,61223.0,0.00622373]
[1719487697083,2.91706886,61224.0,61223.0,0.61906055]
[1719487697287,0.97500686,61224.0,61223.0,0.61906055]
[1719487697520,0.97050686,61224.0,61223.0,0.61906055]
[1719487698635,0.96250686,61224.0,61223.0,0.61906055]
[1719487698840,0.96700686,61224.0,61223.0,0.61906055]
[1719487698993,1.06250686,61224.0,61223.0,0.62306055]
[1719487699200,1.03688544,61224.0,61223.0,0.62957496]
[1719487700213,0.61471644,61224.0,61223.0,0.63957496]
[1719487700412,0.70221644,61224.0,61223.0,0.63957496]
[1719487700623,0.70221644,61224.0,61223.0,0.63557496]
[1719487700825,0.28004744,61224.0,61223.0,0.63557496]
[1719487701024,0.28104744,61224.0,61223.0,0.64157496]
[1719487701227,0.10184,61224.0,61223.0,0.64457496]
[1719487701762,0.10184,61224.0,61223.0,0.64157496]
[1719487702696,0.00184,61224.0,61223.0,0.64157496]
[1719487703681,0.00284,61224.0,61223.0,0.64357496]
[1719487704091,0.00284,61224.0,61223.0,0.80591394]
[1719487705309,0.00284,61224.0,61223.0,1.26475094]
[1719487706458,0.00184,61224.0,61223.0,1.25875094]
[1719487706868,0.00184,61224.0,61223.0,1.78542494]
[1719487707774,0.00084,61224.0,61223.0,1.78342494]
[1719487707981,0.00184,61224.0,61223.0,1.79542494]
[1719487708594,0.00284,61224.0,61223.0,1.80342494]
[1719487709458,0.00284,61224.0,61223.0,1.47675094]
[1719487710229,0.00284,61224.0,61223.0,1.27675094]
[1719487710428,0.00284,61224.0,61223.0,1.47675094]
[1719487710628,0.326576,61242.0,61240.0,0.34363682]
[1719487710839,0.08130346,61258.0,61240.0,0.35005866]
[1719487710840,1.524095,61241.0,61240.0,0.35005866]
[1719487711015,1.54970536,61241.0,61240.0,0.35005866]
[1719487711855,1.55370536,61241.0,61240.0,0.35005866]
[1719487712086,1.55670536,61241.0,61240.0,0.34363682]
[1719487712458,1.55670536,61241.0,61240.0,0.35005866]
[1719487712670,1.65670536,61241.0,61240.0,0.34363682]
[1719487714113,1.56120536,61241.0,61240.0,0.34363682]
[1719487714315,1.65670536,61241.0,61240.0,0.34363682]
[1719487716842,1.56120536,61241.0,61240.0,0.34363682]
[1719487717072,1.65670536,61241.0,61240.0,0.34363682]
[1719487717819,1.04455536,61241.0,61240.0,0.34363682]
[1719487718017,1.79396336,61241.0,61240.0,0.35002223]
[1719487718237,1.79396336,61241.0,61240.0,0.34363682]
[1719487719819,0.94905536,61241.0,61240.0,0.47063682]
[1719487720026,0.923445,61241.0,61240.0,0.47063682]
[1719487720256,0.923445,61241.0,61240.0,0.47702202]
[1719487720608,0.270289,61241.0,61240.0,0.62922202]
[1719487720816,0.326573,61242.0,61240.0,0.62922202]
[1719487721021,0.326573,61242.0,61241.0,0.225]
[1719487721221,0.326573,61242.0,61241.0,0.22138283]
[1719487721222,0.440698,61242.0,61241.0,0.22138283]
[1719487721423,0.603984,61242.0,61241.0,0.35001965]
[1719487721838,0.603984,61242.0,61241.0,0.36001965]
[1719487722382,0.603984,61242.0,61241.0,0.35001965]
[1719487722590,0.608984,61242.0,61241.0,0.35001965]
[1719487722825,0.612984,61242.0,61241.0,0.35001965]
[1719487723006,0.598859,61242.0,61241.0,0.35001965]
[1719487723411,0.593859,61242.0,61241.0,0.35001965]
[1719487723740,0.598859,61242.0,61241.0,0.35001965]
[1719487723937,1.070668,61242.0,61241.0,0.35001965]
[1719487724372,0.744095,61242.0,61241.0,0.35001965]
[1719487724612,0.598859,61242.0,61241.0,0.50051965]
[1719487724942,0.594859,61242.0,61241.0,0.50051965]
[1719487725297,0.598859,61242.0,61241.0,0.50051965]
[1719487728173,0.272286,61242.0,61241.0,0.50051965]
[1719487728346,0.109,61242.0,61241.0,0.51051965]
[1719487729948,0.109,61242.0,61241.0,0.50051965]
[1719487730094,0.272286,61242.0,61241.0,0.50051965]
[1719487732540,0.109,61242.0,61241.0,0.50051965]
[1719487732739,0.109,61242.0,61241.0,0.51051965]
[1719487734601,0.109,61242.0,61241.0,0.50051965]
[1719487736575,1.193932,61242.0,61241.0,0.13501965]
[1719487736787,1.701584,61242.0,61238.0,0.12863682]
[1719487736985,1.701584,61242.0,61236.0,0.2]
[1719487736986,1.507096,61237.0,61236.0,0.32863682]
[1719487737188,1.507096,61237.0,61236.0,0.12863682]
[1719487737507,1.933695,61237.0,61236.0,0.12863682]
[1719487737705,4.469464,61237.0,61236.0,0.12863682]
[1719487737953,4.708704,61237.0,61236.0,0.12863682]
[1719487738154,4.708704,61237.0,61223.0,0.15672373]
[1719487738155,1.143152,61234.0,61233.0,0.12863682]
[1719487738419,4.510121,61234.0,61233.0,0.12863682]
[1719487738630,6.355231,61234.0,61233.0,0.12863682]
[1719487738840,6.461509,61234.0,61233.0,0.12863682]
[1719487739015,5.693358,61234.0,61233.0,0.12863682]
[1719487739417,5.694358,61234.0,61233.0,0.13563682]
[1719487739637,5.85669171,61234.0,61233.0,0.12863682]
[1719487739875,5.85569171,61234.0,61233.0,0.12863682]
[1719487740401,5.70532971,61234.0,61233.0,0.12863682]
[1719487740726,6.03394471,61234.0,61233.0,0.12863682]
[1719487741805,6.02186671,61234.0,61233.0,0.12863682]
[1719487742016,5.46454271,61234.0,61233.0,0.12863682]
[1719487742235,5.44430571,61234.0,61233.0,0.12863682]
[1719487742980,5.44630571,61234.0,61233.0,0.12863682]
[1719487743825,5.14758,61234.0,61233.0,0.32863682]
[1719487744151,3.920825,61234.0,61233.0,0.12863682]
[1719487745466,3.819534,61234.0,61233.0,0.32863682]
[1719487745668,3.819534,61234.0,61233.0,0.12863682]
[1719487746428,3.818534,61234.0,61233.0,0.12863682]
[1719487746773,3.819534,61234.0,61233.0,0.12863682]
[1719487747384,3.817534,61234.0,61233.0,0.12863682]
[1719487748646,3.816534,61234.0,61233.0,0.12863682]
[1719487748987,3.819534,61234.0,61233.0,0.12863682]
[1719487749815,3.817534,61234.0,61233.0,0.12863682]
[1719487750013,3.819534,61234.0,61233.0,0.12863682]
[1719487752380,3.819534,61234.0,61233.0,0.12495533]
[1719487755008,4.333841,61234.0,61233.0,0.12495533]
[1719487755387,4.237742,61234.0,61233.0,0.12495533]
[1719487759579,4.237742,61234.0,61227.0,0.2]
[1719487759580,0.163323,61228.0,61227.0,0.2]
[1719487759779,0.163323,61228.0,61226.0,0.12995533]
[1719487759780,0.163326,61227.0,61226.0,0.2]
[1719487760080,0.163326,61227.0,61223.0,0.00622373]
[1719487760081,1.47001,61224.0,61223.0,0.00622373]
[1719487760285,2.161879,61224.0,61223.0,0.00622373]
[1719487760549,2.261879,61224.0,61223.0,0.00622373]
[1719487760749,6.329594,61224.0,61223.0,0.00622373]
[1719487760904,5.486131,61224.0,61223.0,0.00622373]
[1719487761107,5.449896,61224.0,61223.0,0.00622373]
[1719487761665,5.44969948,61224.0,61223.0,0.00622373]
[1719487762641,5.45469948,61224.0,61223.0,0.00622373]
[1719487763067,5.45869948,61224.0,61223.0,0.00622373]
[1719487764186,2.27068248,61224.0,61223.0,0.00622373]
[1719487764393,5.55499348,61224.0,61223.0,0.00622373]
[1719487765570,5.51405048,61224.0,61223.0,0.00622373]
[1719487768169,5.47800848,61224.0,61223.0,0.00622373]
[1719487768370,5.46530648,61224.0,61223.0,0.00622373]
[1719487770719,5.48781844,61224.0,61223.0,0.00622373]
[1719487771710,5.51343851,61224.0,61223.0,0.00622373]
[1719487772532,5.51427851,61224.0,61223.0,0.00622373]
[1719487774016,6.23600251,61224.0,61223.0,0.00622373]
[1719487774222,5.96882051,61224.0,61223.0,0.00622373]
[1719487774723,5.68697551,61224.0,61223.0,0.00622373]
[1719487781271,5.84930922,61224.0,61223.0,0.00622373]
[1719487782978,5.68697551,61224.0,61223.0,0.00622373]
[1719487785217,4.71722251,61224.0,61223.0,0.00622373]
[1719487785413,2.38889551,61224.0,61223.0,0.62187906]
[1719487785635,2.05217044,61224.0,61223.0,0.62187906]
[1719487786347,2.04717044,61224.0,61223.0,0.62187906]
[1719487786752,2.04317044,61224.0,61223.0,0.62187906]
[1719487786970,2.04717044,61224.0,61223.0,0.62187906]
[1719487787172,2.05117044,61224.0,61223.0,0.62187906]
[1719487787348,2.05117044,61224.0,61223.0,0.60687906]
[1719487787772,1.69266544,61224.0,61223.0,0.60687906]
[1719487788325,2.77469244,61224.0,61223.0,0.60687906]
[1719487788524,2.69784644,61224.0,61223.0,0.60687906]
[1719487788910,2.69384644,61224.0,61223.0,0.60687906]
[1719487789323,2.69784644,61224.0,61223.0,0.60687906]
[1719487789648,2.69384644,61224.0,61223.0,0.60687906]
[1719487789847,2.69784644,61224.0,61223.0,0.60687906]
[1719487790254,2.69384644,61224.0,61223.0,0.61187906]
[1719487790695,2.69684644,61224.0,61223.0,0.61187906]
[1719487791299,2.69384644,61224.0,61223.0,0.61187906]
[1719487791499,2.69784644,61224.0,61223.0,0.62187906]
[1719487792192,2.69384644,61224.0,61223.0,0.62187906]
[1719487792410,2.47018844,61224.0,61223.0,0.62187906]
[1719487792611,2.47218844,61224.0,61223.0,0.62187906]
[1719487794525,2.47518844,61224.0,61223.0,0.62187906]
[1719487794726,2.47518844,61224.0,61223.0,0.60687906]
[1719487795182,2.47518844,61224.0,61223.0,0.40687906]
[1719487795183,2.47218844,61224.0,61223.0,0.40687906]
[1719487795388,2.47218844,61224.0,61223.0,0.13117906]
[1719487796113,2.47518844,61224.0,61223.0,0.13117906]
[1719487796606,2.47518844,61224.0,61223.0,0.34617906]
[1719487796778,2.40624444,61224.0,61223.0,0.34617906]
[1719487797399,2.40624444,61224.0,61223.0,0.62187906]
[1719487797603,2.34676144,61224.0,61223.0,0.62187906]
[1719487798723,2.34476144,61224.0,61223.0,0.62187906]
[1719487799126,2.34476144,61224.0,61223.0,0.62487906]
[1719487799329,2.01809244,61224.0,61223.0,0.62487906]
[1719487799492,1.80006744,61224.0,61223.0,0.62487906]
[1719487799936,1.79706744,61224.0,61223.0,0.62215795]
[1719487800349,1.55913644,61224.0,61223.0,0.62415795]
[1719487800808,1.55913644,61224.0,61223.0,0.63415795]
[1719487800809,0.10084,61224.0,61223.0,0.63415795]
[1719487801005,0.10084,61224.0,61223.0,0.62415795]
[1719487801006,0.164174,61224.0,61223.0,0.62415795]
[1719487801205,0.264174,61224.0,61223.0,0.63415795]
[1719487804655,0.264174,61224.0,61223.0,1.09199693]
[1719487804656,0.00084,61224.0,61223.0,1.09199693]
[1719487805676,0.00084,61224.0,61223.0,1.08999693]
[1719487806099,0.00084,61224.0,61223.0,1.08699693]
[1719487806300,0.00184,61224.0,61223.0,1.09799693]
[1719487806502,0.00184,61224.0,61223.0,1.00249693]
[1719487806631,0.00184,61224.0,61223.0,1.09799693]
[1719487806836,0.00284,61224.0,61223.0,1.10899693]
[1719487809173,0.30246045,61237.0,61236.0,0.3517]
[1719487809707,0.46575945,61237.0,61236.0,0.3517]
[1719487809869,0.49137142,61237.0,61236.0,0.3517]
[1719487810943,0.46575945,61237.0,61236.0,0.3517]
[1719487811294,0.56575945,61237.0,61236.0,0.3517]
[1719487812213,0.56575945,61237.0,61236.0,0.3547]
[1719487812468,0.56575945,61237.0,61236.0,0.3567]
[1719487812665,0.263299,61237.0,61236.0,0.3567]
[1719487813359,0.263299,61237.0,61236.0,0.48165533]
[1719487813360,0.5899,61237.0,61236.0,0.48165533]
[1719487815708,0.1,61237.0,61236.0,0.48165533]
[1719487815928,0.1,61237.0,61236.0,0.64399431]
[1719487816299,0.489848,61244.0,61243.0,0.61925533]
[1719487816502,0.589848,61244.0,61243.0,0.61925533]
[1719487818001,0.589848,61244.0,61243.0,0.62025533]
[1719487818002,0.595848,61244.0,61243.0,0.62025533]
[1719487818379,0.269281,61244.0,61243.0,0.62025533]
[1719487819371,0.106,61244.0,61243.0,0.62025533]
[1719487819580,0.006,61244.0,61243.0,0.98259431]
[1719487819807,0.006,61244.0,61243.0,0.78259431]
[1719487819984,0.006,61244.0,61243.0,0.77259431]
[1719487820185,0.006,61244.0,61243.0,0.34095533]
[1719487820186,0.495843,61244.0,61243.0,0.34095533]
[1719487820389,0.495843,61244.0,61243.0,0.12595533]
[1719487820587,0.502843,61244.0,61243.0,0.12695533]
[1719487821163,0.495843,61244.0,61243.0,0.34095533]
[1719487821389,0.589843,61244.0,61243.0,0.33995533]
[1719487821576,0.589843,61244.0,61243.0,0.34095533]
[1719487822660,0.589843,61244.0,61243.0,0.34195533]
[1719487824192,0.589843,61244.0,61243.0,0.35195533]
[1719487826031,0.589843,61244.0,61243.0,0.78359431]
[1719487826032,0.1,61244.0,61243.0,0.78359431]
[1719487826230,0.1,61245.0,61244.0,0.14495533]
[1719487826446,0.1,61245.0,61244.0,0.34995533]
[1719487827025,0.1,61245.0,61244.0,0.34965733]
[1719487828298,0.1,61245.0,61244.0,0.63549631]
[1719487828588,0.263271,61248.0,61247.0,0.34965733]
[1719487829965,0.1,61248.0,61247.0,0.28729431]
[1719487830179,0.1,61249.0,61248.0,0.61895733]
[1719487830367,0.1955,61261.0,61260.0,0.33965733]
[1719487830590,0.907339,61261.0,61260.0,0.33965733]
[1719487830984,1.23381,61261.0,61260.0,0.33965733]
[1719487831186,0.589706,61261.0,61260.0,0.34965733]
[1719487831731,0.489706,61261.0,61260.0,0.34965733]
[1719487832047,0.47434653,61268.0,61267.0,0.33965733]
[1719487832048,0.35204653,61268.0,61267.0,0.33965733]
[1719487832254,0.02560853,61268.0,61267.0,0.34965733]
[1719487832464,0.02560853,61268.0,61267.0,0.51199631]
[1719487832882,0.02560853,61268.0,61267.0,0.71199631]
[1719487833089,0.02560853,61268.0,61267.0,0.98129631]
[1719487834158,0.02560853,61268.0,61267.0,1.34451631]
[1719487834514,0.02760853,61268.0,61267.0,1.18929631]
[1719487836020,0.02660853,61268.0,61267.0,1.18929631]
[1719487836182,0.02660853,61268.0,61267.0,0.78929631]
[1719487836409,0.02660853,61268.0,61267.0,0.98929631]
[1719487836610,0.02760853,61268.0,61267.0,0.99629631]
[1719487836954,0.002,61268.0,61267.0,0.99629631]
[1719487837180,0.002,61268.0,61267.0,0.79629631]
[1719487837596,0.163199,61275.0,61274.0,0.12495533]
[1719487837725,0.163199,61275.0,61274.0,0.50199631]
[1719487838155,0.163196,61276.0,61275.0,0.214702]
[1719487838363,0.163196,61276.0,61275.0,0.38704098]
[1719487839817,0.163196,61276.0,61275.0,0.51199631]
[1719487840265,0.263185,61280.0,61279.0,0.34965733]
[1719487840465,0.263185,61280.0,61279.0,0.51199631]
[1719487841537,0.258185,61280.0,61279.0,0.51199631]
[1719487842543,0.095,61280.0,61279.0,0.51199631]
[1719487843020,0.326344,61285.0,61279.0,0.51199631]
[1719487843021,0.326344,61285.0,61284.0,0.214702]
[1719487843227,0.326344,61285.0,61284.0,0.39085696]
[1719487843412,0.589516,61285.0,61284.0,0.39085696]
[1719487844456,0.587516,61285.0,61284.0,0.39185696]
[1719487844767,0.587516,61285.0,61284.0,0.39285696]
[1719487844973,0.587516,61285.0,61284.0,0.40285696]
[1719487845476,0.587516,61285.0,61284.0,0.39285696]
[1719487846484,0.587516,61285.0,61284.0,0.40285696]
[1719487846685,0.587516,61285.0,61284.0,0.39285696]
[1719487847285,0.266172,61285.0,61284.0,0.39285696]
[1719487847488,0.266172,61285.0,61284.0,0.34165733]
[1719487848168,0.266172,61285.0,61284.0,0.35165733]
[1719487849937,0.592516,61285.0,61284.0,0.34165733]
[1719487850142,0.91886,61285.0,61284.0,0.34165733]
[1719487850312,1.04006,61285.0,61284.0,0.34165733]
[1719487851247,1.27836,61285.0,61284.0,0.34165733]
[1719487853292,1.604704,61285.0,61284.0,0.34165733]
[1719487854199,1.76703771,61285.0,61284.0,0.32695533]
[1719487854416,2.90589171,61285.0,61284.0,0.002]
[1719487854615,3.39487269,61285.0,61284.0,0.002]
[1719487854780,1.732486,61275.0,61274.0,0.12495533]
[1719487854993,1.732486,61275.0,61269.0,0.014702]
[1719487854994,0.81602,61273.0,61272.0,0.12495533]
[1719487855260,2.892212,61273.0,61272.0,0.12495533]
[1719487855468,3.099982,61273.0,61272.0,0.12495533]
[1719487855599,2.779982,61273.0,61272.0,0.12495533]
[1719487856444,1.384928,61273.0,61272.0,0.12495533]
[1719487856644,1.384928,61273.0,61272.0,0.33965733]
[1719487856898,2.164548,61273.0,61272.0,0.33965733]
[1719487857659,1.802994,61273.0,61272.0,0.33965733]
[1719487857862,1.610589,61273.0,61272.0,0.33965733]
[1719487858278,1.610589,61273.0,61272.0,0.34165733]
[1719487859835,1.610589,61273.0,61272.0,0.33965733]
[1719487860016,1.610589,61273.0,61272.0,0.12683478]
[1719487860413,1.610589,61273.0,61272.0,0.12383478]
[1719487860624,1.610589,61273.0,61272.0,0.12783478]
[1719487860965,1.77292271,61273.0,61272.0,0.12783478]
[1719487863267,1.77292271,61273.0,61272.0,0.32783478]
[1719487863473,1.77292271,61273.0,61272.0,0.12783478]
[1719487863758,1.77292271,61273.0,61272.0,0.12883478]
[1719487863934,1.77292271,61273.0,61272.0,0.12483478]
[1719487864336,1.77292271,61273.0,61272.0,0.12583478]
[1719487864771,1.77292271,61273.0,61272.0,0.12483478]
[1719487864909,2.22053071,61273.0,61272.0,0.001]
[1719487865504,2.54723671,61273.0,61272.0,0.002]
[1719487865707,3.03598369,61273.0,61272.0,0.002]
[1719487865886,3.03598369,61273.0,61261.0,0.2]
[1719487865887,1.732797,61262.0,61261.0,0.2]
[1719487866038,0.632223,61259.0,61258.0,0.32383478]
[1719487866294,0.632223,61259.0,61243.0,0.60402074]
[1719487866295,0.816245,61256.0,61255.0,0.12383478]
[1719487866500,3.647683,61256.0,61255.0,0.12383478]
[1719487866681,4.631808,61256.0,61255.0,0.12383478]
[1719487866881,0.163254,61254.0,61253.0,0.32383478]
[1719487867221,2.577974,61254.0,61253.0,0.32383478]
[1719487867376,3.230992,61254.0,61253.0,0.32383478]
[1719487868011,1.611885,61250.0,61249.0,0.12383478]
[1719487868212,1.711885,61250.0,61249.0,0.12383478]
[1719487868593,4.74244983,61250.0,61249.0,0.12383478]
[1719487868794,5.18640383,61250.0,61249.0,0.12383478]
[1719487869039,5.18640383,61250.0,61249.0,0.33853678]
[1719487869220,3.556714,61250.0,61249.0,0.33853678]
[1719487871405,3.098029,61250.0,61249.0,0.34453678]
[1719487871637,3.105677,61250.0,61249.0,0.34453678]
[1719487871810,2.917708,61250.0,61249.0,0.34453678]
[1719487872263,0.917325,61250.0,61249.0,0.51681046]
[1719487872459,0.918325,61250.0,61249.0,0.52281046]
[1719487872647,0.918325,61250.0,61249.0,0.62293678]
[1719487872851,0.591795,61250.0,61249.0,0.78527576]
[1719487873054,0.265265,61250.0,61249.0,0.78527576]
[1719487873667,0.591795,61250.0,61249.0,0.78527576]
[1719487873892,1.244855,61250.0,61249.0,0.35053678]
[1719487874101,1.244855,61250.0,61249.0,0.36053678]
[1719487874881,0.98159,61250.0,61249.0,0.35053678]
[1719487875092,1.144855,61250.0,61249.0,0.35053678]
[1719487875268,1.144855,61250.0,61249.0,0.36053678]
[1719487876077,1.144855,61250.0,61249.0,0.35053678]
[1719487876493,1.144855,61250.0,61249.0,0.36053678]
[1719487876932,0.102,61250.0,61249.0,0.36053678]
[1719487877136,0.102,61250.0,61249.0,0.52287576]
[1719487877274,0.265265,61250.0,61249.0,0.52287576]
[1719487877862,0.102,61250.0,61249.0,0.52287576]
[1719487878233,0.002,61250.0,61249.0,0.52287576]
[1719487879338,0.002,61250.0,61249.0,0.77537576]
[1719487879881,0.165265,61250.0,61249.0,0.77537576]
[1719487880070,0.165265,61250.0,61249.0,0.36053678]
[1719487880071,0.918325,61250.0,61249.0,0.36053678]
[1719487880272,1.244855,61250.0,61249.0,0.36053678]
[1719487880592,0.918325,61250.0,61249.0,0.36053678]
[1719487880792,0.918325,61250.0,61249.0,0.35053678]
[1719487881470,0.591795,61250.0,61249.0,0.36053678]
[1719487884169,0.591795,61250.0,61249.0,0.61303678]
[1719487884952,0.102,61250.0,61249.0,0.61303678]
[1719487885176,0.002,61250.0,61249.0,0.61303678]
[1719487886929,0.165265,61250.0,61249.0,0.61303678]
[1719487887341,0.265265,61250.0,61249.0,0.61303678]
[1719487888331,0.102,61250.0,61249.0,0.61303678]
[1719487888524,0.002,61250.0,61249.0,0.61303678]
[1719487889515,0.002,61250.0,61249.0,2.31824776]
[1719487889720,0.002,61250.0,61249.0,2.77954776]
[1719487889965,0.489584,61277.0,61276.0,0.33853678]
[1719487890172,0.356234,61277.0,61276.0,0.33853678]
[1719487890405,0.68262,61277.0,61276.0,0.33853678]
[1719487890608,0.68262,61277.0,61276.0,0.12383478]
[1719487890812,0.68262,61277.0,61276.0,0.33853678]
[1719487891664,0.78262,61277.0,61276.0,0.34253678]
[1719487892629,0.326357,61283.0,61282.0,0.33853678]
[1719487892804,0.489517,61285.0,61284.0,0.33853678]
[1719487893005,0.489516,61285.0,61284.0,0.33853678]
[1719487893259,0.698216,61285.0,61284.0,0.33853678]
[1719487893460,0.17487,61285.0,61284.0,0.38339046]
[1719487893661,0.00839,61290.0,61285.0,0.34853678]
[1719487893887,0.171548,61290.0,61285.0,0.34853678]
[1719487894862,0.163161,61289.0,61285.0,0.34853678]
[1719487895184,0.326326,61289.0,61285.0,0.33853678]
[1719487895382,1.005235,61286.0,61285.0,0.33853678]
[1719487895582,1.005235,61286.0,61285.0,0.12383478]
[1719487895583,1.678423,61286.0,61285.0,0.12383478]
[1719487895935,0.774458,61286.0,61285.0,0.34853678]
[1719487896137,0.246674,61286.0,61285.0,0.34853678]
[1719487897035,0.409843,61286.0,61285.0,0.12383478]
[1719487897356,0.409843,61286.0,61285.0,0.34853678]
[1719487897570,0.246674,61286.0,61285.0,0.34853678]
[1719487898191,0.409843,61286.0,61285.0,0.34853678]
[1719487898655,0.271559,61286.0,61285.0,0.34853678]
[1719487899252,0.271559,61286.0,61285.0,0.33853678]
[1719487900113,0.597897,61286.0,61285.0,0.33853678]
[1719487900658,0.597897,61286.0,61285.0,0.34853678]
[1719487900781,0.597897,61286.0,61285.0,0.33853678]
[1719487905022,0.597897,61286.0,61285.0,0.34853678]
[1719487906141,0.10839,61286.0,61285.0,0.34853678]
[1719487906346,0.00839,61286.0,61285.0,0.34853678]
[1719487906552,0.10839,61286.0,61285.0,0.34853678]
[1719487906966,0.00839,61286.0,61285.0,0.95457576]
[1719487908595,0.00839,61286.0,61285.0,0.96857576]
[1719487908922,0.00839,61286.0,61285.0,0.54387376]
[1719487909421,0.00839,61286.0,61285.0,0.55787376]
[1719487909624,0.00839,61286.0,61285.0,0.98257576]
[1719487910023,0.00839,61286.0,61285.0,1.34574776]
[1719487910247,0.00839,61286.0,61285.0,1.99843576]
[1719487910651,0.00839,61286.0,61285.0,2.52477976]
[1719487910851,0.00839,61286.0,61285.0,2.54777976]
[1719487912294,0.00839,61286.0,61285.0,2.68340275]
[1719487914530,0.00839,61286.0,61285.0,2.12307776]
[1719487914872,0.00839,61286.0,61285.0,2.25870028]
[1719487915222,0.00839,61286.0,61285.0,2.68340228]
[1719487917580,0.00839,61286.0,61285.0,2.25870028]
[1719487918087,0.00839,61286.0,61285.0,2.68340228]
[1719487918241,1e-08,61286.0,61285.0,2.9064398]
[1719487919247,1e-08,61286.0,61285.0,2.88683605]
[1719487920618,1e-08,61286.0,61285.0,2.54777976]
[1719487920826,1e-08,61286.0,61285.0,2.88683516]
[1719487924151,1e-08,61286.0,61285.0,2.88683546]
[1719487924922,1e-08,61286.0,61285.0,2.88683517]
[1719487925140,1e-08,61286.0,61285.0,1.72163117]
[1719487925334,1e-08,61286.0,61285.0,1.59083117]
[1719487925497,1e-08,61286.0,61285.0,1.61044156]
[1719487925952,1e-08,61286.0,61285.0,1.41044156]
[1719487926154,1e-08,61286.0,61285.0,1.59083117]
[1719487926361,1e-08,61286.0,61285.0,1.61044229]
[1719487926571,1e-08,61286.0,61285.0,1.61048631]
[1719487926943,1e-08,61286.0,61285.0,2.40673481]
[1719487927149,1e-08,61286.0,61285.0,2.23419081]
[1719487927354,1e-08,61286.0,61285.0,1.90784681]
[1719487927516,1e-08,61286.0,61285.0,1.47797481]
[1719487927717,1e-08,61286.0,61285.0,1.27797481]
[1719487928136,1e-08,61286.0,61285.0,1.29758269]
[1719487928557,1e-08,61286.0,61285.0,1.07451538]
[1719487928962,1e-08,61286.0,61285.0,1.49758505]